[Event "2nd Bieszczady Chess-ch B 2022"]
[Site "Bystre"]
[Date "2022.07.19"]
[Round "3.7"]
[White "Sternik, Piotr"]
[Black "Giefert, Sara"]
[Result "1/2-1/2"]
[ECO "A45"]
[WhiteElo "1434"]
[BlackElo "1692"]
[Annotator "NA RC COMBH"]
[PlyCount "101"]
[EventDate "2022.07.17"]
[EventCountry "POL"]
[SourceTitle "playchess.com"]
[Source "ChessBase"]
[SourceQuality "1"]
[TimeControl "5400+30"]

1. d4 {[%emt 0:00:02]} Nf6 {[%emt 0:00:23]} 2. Bg5 {[%emt 0:00:08]} Ne4 {[%emt 0:02:32]} 3. h4 {[%emt 0:00:15]} d5 {[%emt 0:02:11]} 4. Nd2 {[%emt 0:00:28]} Bf5 {[%emt 0:03:05]} 5. e3 {[%emt 0:03:57]} Nxg5 {[%emt 0:05:07]} 6. hxg5 {[%emt 0:00:59]} e6 {[%emt 0:00:48]} 7. Ngf3 {[%emt 0:02:16]} Bd6 {[%emt 0:02:10]} 8. Bd3 {[%emt 0:00:55]} c6 {[%emt 0:04:10]} 9. Bxf5 {[%emt 0:00:27]} exf5 {[%emt 0:00:15]} 10. c4 {[%emt 0:00:26]} dxc4 {[%emt 0:08:41]} 11. Qc2 {[%emt 0:03:16]} g6 {[%emt 0:01:45]} 12. Qxc4 {[%emt 0:00:24]} Nd7 {[%emt 0:01:07]} 13. Qc3 {[%emt 0:06:03]} f6 {[%emt 0:05:51]} 14. Nh4 {[%emt 0:03:27]} Rf8 {[%emt 0:01:27]} 15. Nhf3 {[%emt 0:03:33]} Qe7 {[%emt 0:05:09]} 16. Qb3 {[%emt 0:05:15]} O-O-O {[%emt 0:07:25]} 17. gxf6 {[%emt 0:06:49]} Nxf6 {[%emt 0:02:48]} 18. O-O-O {[%emt 0:01:44]} Kb8 {[%emt 0:03:34]} 19. Ng5 {[%emt 0:06:22]} Rde8 {[%emt 0:01:49]} 20. Nc4 {[%emt 0:00:37]} Bc7 {[%emt 0:01:32]} 21. f4 {[%emt 0:15:11]} h5 {[%emt 0:03:13]} 22. Nf3 {[%emt 0:05:51]} Ng4 {[%emt 0:01:49]} 23. Rhe1 {[%emt 0:00:03]} Qe6 {[%emt 0:02:33]} 24. Nfe5 {[%emt 0:02:14]} Nf2 {[%emt 0:09:57]} 25. Rd2 {[%emt 0:00:27]} Ne4 {[%emt 0:00:08]} 26. Rc2 {[%emt 0:00:07]} Ka8 {[%emt 0:01:09]} 27. Qa3 {[%emt 0:01:58]} Rd8 {[%emt 0:03:07]} 28. Kb1 {[%emt 0:06:27]} Rfe8 {[%emt 0:01:58]} 29. Rec1 {[%emt 0:00:15]} Rd5 {[%emt 0:05:08]} 30. Ka1 {[%emt 0:06:28]} Nd6 {[%emt 0:04:26]} 31. b3 {[%emt 0:08:23]} Ne4 {[%emt 0:01:57]} 32. b4 {[%emt 0:01:29]} g5 {[%emt 0:02:15]} 33. Na5 {[%emt 0:04:42]} Bxe5 {[%emt 0:04:46]} 34. fxe5 {[%emt 0:00:06]} Rc8 {[%emt 0:00:29]} 35. Nc4 {[%emt 0:01:30]} Kb8 {[%emt 0:00:27]} 36. Nd2 {[%emt 0:00:41]} Nxd2 {[%emt 0:00:57]} 37. Rxd2 {[%emt 0:00:06]} Rcd8 {[%emt 0:00:14]} 38. Rc5 {[%emt 0:01:09]} h4 {[%emt 0:01:05]} 39. Qc1 {[%emt 0:01:02]} g4 {[%emt 0:00:50]} 40. Qe1 {[%emt 0:00:17]} Rh8 {[%emt 0:00:51]} 41. e4 {[%emt 0:01:20]} Rxc5 {[%emt 0:00:20]} 42. bxc5 {[%emt 0:00:12]} f4 {[%emt 0:00:56]} 43. Qf2 {[%emt 0:00:31]} Qh6 {[%emt 0:00:33]} 44. d5 {[%emt 0:00:13]} Re8 {[%emt 0:00:37]} 45. d6 {[%emt 0:00:30]} f3 {[%emt 0:00:33]} 46. d7 {[%emt 0:00:27]} Rd8 {[%emt 0:00:05]} 47. e6 {[%emt 0:01:04]} Qxe6 {[%emt 0:00:22]} 48. Qxh4 {[%emt 0:01:27]} Rxd7 {[%emt 0:00:25]} 49. Qh8+ {[%emt 0:00:04]} Kc7 {[%emt 0:00:14]} 50. Qh2+ {[%emt 0:00:04]} Kc8 {[%emt 0:01:23]} 51. Qh8+ {[%emt 0:00:05]} 1/2-1/2

[Event "2nd Bieszczady Chess-ch B 2022"]
[Site "Bystre"]
[Date "2022.07.19"]
[Round "3.8"]
[White "Panczuk, Grzegorz"]
[Black "Labedz, Gabriela"]
[Result "1-0"]
[ECO "C41"]
[WhiteElo "1684"]
[BlackElo "1346"]
[Annotator "NA RC COMBH"]
[PlyCount "43"]
[EventDate "2022.07.17"]
[EventCountry "POL"]
[SourceTitle "playchess.com"]
[Source "ChessBase"]
[SourceQuality "1"]
[TimeControl "5400+30"]

1. d4 {[%emt 0:00:02]} d6 {[%emt 0:00:09]} 2. e4 {[%emt 0:00:06]} Nf6 {[%emt 0:00:14]} 3. Nc3 {[%emt 0:00:05]} e5 {[%emt 0:00:17]} 4. Nf3 {[%emt 0:00:07]} Nbd7 {[%emt 0:00:27]} 5. g4 {[%emt 0:00:05]} Nxg4 {[%emt 0:04:30]} 6. Rg1 {[%emt 0:00:06]} Ngf6 {[%emt 0:01:25]} 7. Bc4 {[%emt 0:01:01]} h6 {[%emt 0:05:29]} 8. Be3 {[%emt 0:00:05]} Nb6 {[%emt 0:04:22]} 9. Bb3 {[%emt 0:21:05]} Qe7 {[%emt 0:09:30]} 10. dxe5 {[%emt 0:04:25]} dxe5 {[%emt 0:00:37]} 11. Bxb6 {[%emt 0:02:27]} axb6 {[%emt 0:00:33]} 12. Nd5 {[%emt 0:00:09]} Qd6 {[%emt 0:05:59]} 13. Qe2 {[%emt 0:07:25]} Nxd5 {[%emt 0:07:01]} 14. exd5 {[%emt 0:02:02]} f6 {[%emt 0:01:37]} 15. Nd4 {[%emt 0:04:47]} h5 {[%emt 0:08:19]} 16. O-O-O {[%emt 0:07:12]} c6 {[%emt 0:10:28]} 17. dxc6 {[%emt 0:02:35]} bxc6 {[%emt 0:00:34]} 18. Ne6 {[%emt 0:00:37]} Qe7 {[%emt 0:05:23]} 19. Rd8+ {[%emt 0:00:13]} Qxd8 {[%emt 0:00:05]} 20. Nxd8 {[%emt 0:00:09]} Kxd8 {[%emt 0:00:03]} 21. Rd1+ {[%emt 0:00:13]} Ke8 {[%emt 0:00:36]} 22. Qc4 {[%emt 0:00:11]} 1-0

[Event "2nd Bieszczady Chess-ch B 2022"]
[Site "Bystre"]
[Date "2022.07.19"]
[Round "3.9"]
[White "Gluch, Pawel"]
[Black "Michalski, Jacek"]
[Result "1-0"]
[ECO "C25"]
[WhiteElo "1663"]
[BlackElo "1320"]
[Annotator "NA RC COMBH"]
[PlyCount "35"]
[EventDate "2022.07.17"]
[EventCountry "POL"]
[SourceTitle "playchess.com"]
[Source "ChessBase"]
[SourceQuality "1"]
[TimeControl "5400+30"]

1. e4 {[%emt 0:03:13]} e5 {[%emt 0:00:04]} 2. Nc3 {[%emt 0:00:06]} Bc5 {[%emt 0:00:19]} 3. Bc4 {[%emt 0:00:05]} Nc6 {[%emt 0:00:22]} 4. Qg4 {[%emt 0:00:04]} Kf8 {[%emt 0:00:42]} 5. Qf3 {[%emt 0:00:57]} Qf6 {[%emt 0:02:21]} 6. Nd5 {[%emt 0:00:08]} Qxf3 {[%emt 0:00:10]} 7. Nxf3 {[%emt 0:00:07]} Bb6 {[%emt 0:00:06]} 8. b4 {[%emt 0:05:04]} d6 {[%emt 0:04:16]} 9. a4 {[%emt 0:03:13]} a5 {[%emt 0:01:43]} 10. Nxb6 {[%emt 0:00:19]} cxb6 {[%emt 0:00:10]} 11. b5 {[%emt 0:00:39]} Nd8 {[%emt 0:01:19]} 12. Ba3 {[%emt 0:04:12]} Ke7 {[%emt 0:01:07]} 13. Nxe5 {[%emt 0:01:21]} Be6 {[%emt 0:00:58]} 14. Bxe6 {[%emt 0:00:45]} Kxe6 {[%emt 0:01:06]} 15. Nc4 {[%emt 0:00:08]} d5 {[%emt 0:00:40]} 16. Nxb6 {[%emt 0:00:10]} Rb8 {[%emt 0:00:07]} 17. exd5+ {[%emt 0:00:50]} Kf6 {[%emt 0:00:08]} 18. Nd7+ {[%emt 0:00:40]} 1-0

[Event "2nd Bieszczady Chess-ch B 2022"]
[Site "Bystre"]
[Date "2022.07.19"]
[Round "3.10"]
[White "Dzierzgowska, Jagoda"]
[Black "Mikula, Maciej"]
[Result "0-1"]
[ECO "A56"]
[WhiteElo "1277"]
[BlackElo "1620"]
[Annotator "NA RC COMBH"]
[PlyCount "64"]
[EventDate "2022.07.17"]
[EventCountry "POL"]
[SourceTitle "playchess.com"]
[Source "ChessBase"]
[SourceQuality "1"]
[TimeControl "5400+30"]

1. d4 {[%emt 0:00:03]} Nf6 {[%emt 0:00:36]} 2. c4 {[%emt 0:00:55]} c5 {[%emt 0:00:34]} 3. e3 {[%emt 0:01:44]} g6 {[%emt 0:02:30]} 4. Nc3 {[%emt 0:00:20]} Bg7 {[%emt 0:01:29]} 5. Nf3 {[%emt 0:02:56]} O-O {[%emt 0:02:15]} 6. Bd3 cxd4 {[%emt 0:04:08]} 7. exd4 {[%emt 0:02:50]} d5 {[%emt 0:00:22]} 8. h3 {[%emt 0:06:08]} Nbd7 {[%emt 0:07:01]} 9. Bf4 {[%emt 0:04:54]} dxc4 {[%emt 0:03:25]} 10. Bxc4 {[%emt 0:03:45]} Nb6 {[%emt 0:00:43]} 11. Bb3 {[%emt 0:00:40]} Bf5 {[%emt 0:03:40]} 12. O-O {[%emt 0:02:14]} Rc8 {[%emt 0:05:46]} 13. Rc1 {[%emt 0:03:38]} Ne4 {[%emt 0:15:30]} 14. Re1 {[%emt 0:11:25]} Nxc3 {[%emt 0:02:41]} 15. bxc3 {[%emt 0:01:31]} Nd5 {[%emt 0:15:48]} 16. Bxd5 {[%emt 0:02:14]} Qxd5 {[%emt 0:00:05]} 17. Qb3 {[%emt 0:09:45]} Be6 {[%emt 0:05:14]} 18. Nd2 {[%emt 0:06:22]} Qf5 {[%emt 0:02:29]} 19. Rxe6 {[%emt 0:07:03]} Qxe6 {[%emt 0:04:09]} 20. d5 {[%emt 0:15:45]} Qf5 {[%emt 0:02:20]} 21. Be3 {[%emt 0:01:00]} b6 {[%emt 0:02:44]} 22. c4 {[%emt 0:01:17]} Rfd8 {[%emt 0:01:32]} 23. Nf3 {[%emt 0:01:32]} e6 {[%emt 0:03:47]} 24. dxe6 {[%emt 0:04:14]} Qxe6 {[%emt 0:00:36]} 25. Ng5 {[%emt 0:01:37]} Qf5 {[%emt 0:00:49]} 26. g4 {[%emt 0:01:31]} Qd3 {[%emt 0:01:24]} 27. Qa4 {[%emt 0:03:16]} h6 {[%emt 0:02:05]} 28. Nf3 {[%emt 0:00:34]} Qe4 {[%emt 0:00:43]} 29. Nd2 {[%emt 0:01:17]} Qe7 {[%emt 0:01:04]} 30. Nf3 {[%emt 0:01:13]} Rd3 {[%emt 0:01:22]} 31. Qa6 {[%emt 0:00:58]} Rcd8 {[%emt 0:00:56]} 32. Qa4 {[%emt 0:00:24]} Rxe3 {[%emt 0:01:24]} 0-1

[Event "2nd Bieszczady Chess-ch B 2022"]
[Site "Bystre"]
[Date "2022.07.19"]
[Round "3.11"]
[White "Zajac, Karol"]
[Black "Rzeszuto, Karol"]
[Result "1-0"]
[ECO "C78"]
[WhiteElo "1579"]
[BlackElo "1314"]
[Annotator "NA RC COMBH"]
[PlyCount "119"]
[EventDate "2022.07.17"]
[EventCountry "POL"]
[SourceTitle "playchess.com"]
[Source "ChessBase"]
[SourceQuality "1"]
[TimeControl "5400+30"]

1. e4 {[%emt 0:00:13]} e5 {[%emt 0:00:04]} 2. Nf3 {[%emt 0:00:16]} Nc6 {[%emt 0:00:06]} 3. Bb5 {[%emt 0:00:14]} a6 {[%emt 0:00:04]} 4. Ba4 {[%emt 0:00:06]} Nf6 {[%emt 0:00:04]} 5. O-O {[%emt 0:00:09]} b5 {[%emt 0:00:02]} 6. Bb3 {[%emt 0:00:05]} Bc5 {[%emt 0:00:03]} 7. c3 {[%emt 0:00:43]} d6 {[%emt 0:00:36]} 8. d4 {[%emt 0:01:12]} Bb6 {[%emt 0:00:08]} 9. h3 {[%emt 0:01:57]} Bb7 {[%emt 0:00:14]} 10. Re1 {[%emt 0:00:18]} Qd7 {[%emt 0:02:45]} 11. Bg5 {[%emt 0:05:39]} O-O-O {[%emt 0:03:57]} 12. Bc2 {[%emt 0:05:08]} Rdg8 {[%emt 0:01:23]} 13. dxe5 {[%emt 0:08:13]} Nxe5 {[%emt 0:01:37]} 14. Nxe5 {[%emt 0:00:12]} dxe5 {[%emt 0:00:03]} 15. Qxd7+ {[%emt 0:00:10]} Nxd7 {[%emt 0:00:09]} 16. Nd2 {[%emt 0:05:06]} f6 {[%emt 0:00:17]} 17. Be3 {[%emt 0:00:08]} g5 {[%emt 0:00:54]} 18. Nf1 {[%emt 0:04:42]} h5 {[%emt 0:01:41]} 19. Ng3 {[%emt 0:00:18]} h4 {[%emt 0:00:37]} 20. Nf5 {[%emt 0:00:09]} Rh7 {[%emt 0:00:07]} 21. Bb3 {[%emt 0:01:32]} Re8 {[%emt 0:01:25]} 22. f3 {[%emt 0:02:25]} Kb8 {[%emt 0:02:40]} 23. Rad1 {[%emt 0:03:29]} Bc8 {[%emt 0:02:53]} 24. Bxb6 {[%emt 0:10:32]} Nxb6 {[%emt 0:00:15]} 25. Ne3 {[%emt 0:00:08]} Be6 {[%emt 0:01:45]} 26. Bxe6 {[%emt 0:01:28]} Rxe6 {[%emt 0:00:04]} 27. Rd8+ {[%emt 0:00:58]} Kb7 {[%emt 0:00:08]} 28. Red1 {[%emt 0:00:36]} Ree7 {[%emt 0:02:49]} 29. Ng4 {[%emt 0:03:08]} Ref7 {[%emt 0:01:42]} 30. b3 {[%emt 0:07:39]} Rhg7 {[%emt 0:04:28]} 31. Kf1 {[%emt 0:05:17]} Kc6 {[%emt 0:03:33]} 32. Ke2 {[%emt 0:02:45]} Kc5 {[%emt 0:04:59]} 33. Rh8 {[%emt 0:04:09]} Nd7 {[%emt 0:02:11]} 34. Nh6 {[%emt 0:06:50]} Rf8 {[%emt 0:01:21]} 35. Rxd7 {[%emt 0:00:19]} Rxh8 {[%emt 0:00:06]} 36. Rxg7 {[%emt 0:00:09]} Rxh6 {[%emt 0:00:03]} 37. Rxc7+ {[%emt 0:00:28]} Kb6 {[%emt 0:00:04]} 38. Rc8 {[%emt 0:01:26]} a5 {[%emt 0:01:51]} 39. Kd3 {[%emt 0:01:59]} Rh7 {[%emt 0:00:15]} 40. Rb8+ {[%emt 0:01:29]} Kc5 {[%emt 0:01:51]} 41. Rd8 {[%emt 0:00:36]} Rf7 {[%emt 0:00:37]} 42. a4 {[%emt 0:02:01]} bxa4 {[%emt 0:01:37]} 43. bxa4 {[%emt 0:00:26]} Ra7 {[%emt 0:00:39]} 44. Rc8+ {[%emt 0:01:59]} Kd6 {[%emt 0:00:38]} 45. Kc4 {[%emt 0:01:26]} Rb7 {[%emt 0:00:42]} 46. Ra8 {[%emt 0:00:41]} Rc7+ {[%emt 0:00:07]} 47. Kd3 {[%emt 0:01:04]} Rc5 {[%emt 0:00:08]} 48. Ra6+ {[%emt 0:01:50]} Ke7 {[%emt 0:00:04]} 49. Rb6 {[%emt 0:00:17]} Rc7 {[%emt 0:00:11]} 50. c4 {[%emt 0:01:17]} Rc5 {[%emt 0:01:45]} 51. Kc3 {[%emt 0:00:52]} Rc7 {[%emt 0:00:30]} 52. Rb5 {[%emt 0:00:34]} Ra7 {[%emt 0:00:04]} 53. c5 {[%emt 0:00:09]} Ra6 {[%emt 0:00:46]} 54. Rb7+ {[%emt 0:01:46]} Ke6 {[%emt 0:00:52]} 55. Rb6+ {[%emt 0:00:35]} Rxb6 {[%emt 0:00:04]} 56. cxb6 {[%emt 0:00:05]} Kd6 {[%emt 0:00:01]} 57. Kc4 {[%emt 0:00:20]} Kc6 {[%emt 0:00:06]} 58. b7 {[%emt 0:00:04]} Kxb7 {[%emt 0:00:01]} 59. Kb5 {[%emt 0:00:33]} Kc7 {[%emt 0:00:09]} 60. Kxa5 {[%emt 0:00:09]} 1-0

[Event "2nd Bieszczady Chess-ch B 2022"]
[Site "Bystre"]
[Date "2022.07.20"]
[Round "4.1"]
[White "Tokarz, Izabela"]
[Black "Tymrakiewicz, Marianna"]
[Result "1-0"]
[ECO "A80"]
[WhiteElo "1694"]
[BlackElo "1819"]
[Annotator "NA RC COMBH"]
[PlyCount "137"]
[EventDate "2022.07.17"]
[EventCountry "POL"]
[SourceTitle "playchess.com"]
[Source "ChessBase"]
[SourceQuality "1"]
[TimeControl "5400+30"]

1. d4 {[%emt 0:00:01]} f5 {[%emt 0:00:48]} 2. Nc3 {[%emt 0:00:04]} Nf6 {[%emt 0:00:41]} 3. Bg5 {[%emt 0:00:06]} e6 {[%emt 0:01:11]} 4. e4 {[%emt 0:00:05]} fxe4 {[%emt 0:01:05]} 5. Nxe4 {[%emt 0:00:04]} Be7 {[%emt 0:00:33]} 6. Bxf6 {[%emt 0:00:08]} Bxf6 {[%emt 0:02:03]} 7. Qh5+ {[%emt 0:00:06]} g6 {[%emt 0:01:47]} 8. Qh6 {[%emt 0:00:05]} Qe7 {[%emt 0:02:56]} 9. Nxf6+ {[%emt 0:00:06]} Qxf6 {[%emt 0:00:20]} 10. Nf3 {[%emt 0:04:44]} Qf8 {[%emt 0:02:08]} 11. Qd2 {[%emt 0:00:26]} Nc6 {[%emt 0:14:06]} 12. O-O-O {[%emt 0:03:41]} Ne7 {[%emt 0:11:38]} 13. Bc4 {[%emt 0:02:50]} d5 {[%emt 0:07:35]} 14. Bd3 {[%emt 0:03:03]} Bd7 {[%emt 0:02:59]} 15. Qa5 {[%emt 0:01:40]} Kd8 {[%emt 0:04:34]} 16. Rhe1 {[%emt 0:02:52]} Qf4+ {[%emt 0:04:51]} 17. Kb1 {[%emt 0:00:06]} Nc6 {[%emt 0:00:46]} 18. Qc3 {[%emt 0:00:43]} Re8 {[%emt 0:03:52]} 19. Bb5 {[%emt 0:03:20]} a6 {[%emt 0:01:02]} 20. Bxc6 {[%emt 0:00:11]} Bxc6 {[%emt 0:01:01]} 21. g3 {[%emt 0:00:31]} Qf6 {[%emt 0:00:38]} 22. Ne5 {[%emt 0:00:18]} Bd7 {[%emt 0:01:14]} 23. f4 {[%emt 0:00:11]} Qe7 {[%emt 0:03:38]} 24. Qb3 {[%emt 0:01:23]} Kc8 {[%emt 0:01:00]} 25. Re3 {[%emt 0:01:57]} a5 {[%emt 0:01:49]} 26. a3 {[%emt 0:03:26]} Ra6 {[%emt 0:02:07]} 27. Nd3 {[%emt 0:03:52]} Rc6 {[%emt 0:07:56]} 28. Nc5 {[%emt 0:02:25]} Rb6 {[%emt 0:01:57]} 29. Qc3 {[%emt 0:02:05]} Rb5 {[%emt 0:00:07]} 30. Rde1 {[%emt 0:02:20]} Qd6 {[%emt 0:00:13]} 31. Re5 {[%emt 0:05:50]} Qc6 {[%emt 0:01:27]} 32. Qe3 {[%emt 0:01:42]} Rb6 {[%emt 0:00:49]} 33. Qc1 {[%emt 0:03:23]} Rb5 {[%emt 0:01:16]} 34. R1e2 {[%emt 0:06:20]} b6 {[%emt 0:01:53]} 35. Nxd7 {[%emt 0:03:21]} Kxd7 {[%emt 0:00:40]} 36. Qe3 {[%emt 0:01:08]} Qd6 {[%emt 0:00:26]} 37. f5 {[%emt 0:02:06]} gxf5 {[%emt 0:00:35]} 38. Rxf5 {[%emt 0:00:15]} Qe7 {[%emt 0:00:39]} 39. Re5 {[%emt 0:00:35]} c5 {[%emt 0:01:32]} 40. Qd3 {[%emt 0:06:37]} c4 {[%emt 0:01:58]} 41. Qf3 {[%emt 0:02:21]} Qg7 {[%emt 0:01:03]} 42. Ka2 {[%emt 0:01:22]} a4 {[%emt 0:00:26]} 43. Qh5 {[%emt 0:02:12]} Qg6 {[%emt 0:01:06]} 44. Qh4 {[%emt 0:01:49]} Re7 {[%emt 0:00:55]} 45. c3 {[%emt 0:00:29]} Ra5 {[%emt 0:00:36]} 46. g4 {[%emt 0:04:48]} Kd6 {[%emt 0:02:31]} 47. Qg3 {[%emt 0:00:13]} Kd7 {[%emt 0:00:05]} 48. h4 {[%emt 0:00:20]} Ra8 {[%emt 0:00:25]} 49. Rg5 {[%emt 0:01:28]} Qh6 {[%emt 0:00:28]} 50. Qe1 {[%emt 0:01:02]} Kd6 {[%emt 0:00:46]} 51. Qg3+ {[%emt 0:01:19]} Kd7 {[%emt 0:00:05]} 52. Rh5 {[%emt 0:00:04]} Qg6 {[%emt 0:00:21]} 53. Qe3 {[%emt 0:01:16]} Rae8 {[%emt 0:00:35]} 54. Rg5 {[%emt 0:00:21]} Qf6 {[%emt 0:01:18]} 55. Rf2 {[%emt 0:01:06]} Qh8 {[%emt 0:00:14]} 56. Qf4 {[%emt 0:00:55]} Rg8 {[%emt 0:00:45]} 57. Re5 {[%emt 0:00:58]} Rgg7 {[%emt 0:00:36]} 58. g5 {[%emt 0:03:42]} Qg8 {[%emt 0:00:07]} 59. Qg4 {[%emt 0:00:19]} Rgf7 {[%emt 0:01:28]} 60. Rxd5+ {[%emt 0:03:54]} Kc6 {[%emt 0:00:52]} 61. Rxf7 {[%emt 0:00:28]} Qxf7 {[%emt 0:00:18]} 62. Re5 {[%emt 0:01:18]} Qg6 {[%emt 0:00:43]} 63. Qf3+ {[%emt 0:01:33]} Kd6 {[%emt 0:00:49]} 64. Qa8 {[%emt 0:00:56]} Qc2 {[%emt 0:00:27]} 65. Rb5 {[%emt 0:00:45]} Rf7 {[%emt 0:01:38]} 66. Rxb6+ {[%emt 0:00:07]} Ke7 {[%emt 0:00:40]} 67. Rb7+ {[%emt 0:00:27]} Kd6 {[%emt 0:00:12]} 68. Qd8+ {[%emt 0:00:09]} Kc6 {[%emt 0:00:15]} 69. Rb6# {[%emt 0:00:03]} 1-0

[Event "2nd Bieszczady Chess-ch B 2022"]
[Site "Bystre"]
[Date "2022.07.20"]
[Round "4.2"]
[White "Polak, Sylwia"]
[Black "Biesiadecki, Adam"]
[Result "0-1"]
[ECO "D81"]
[WhiteElo "1574"]
[BlackElo "1776"]
[Annotator "NA RC COMBH"]
[PlyCount "82"]
[EventDate "2022.07.17"]
[EventCountry "POL"]
[SourceTitle "playchess.com"]
[Source "ChessBase"]
[SourceQuality "1"]
[TimeControl "5400+30"]

1. d4 {[%emt 0:00:02]} Nf6 {[%emt 0:00:07]} 2. c4 {[%emt 0:00:05]} g6 {[%emt 0:00:08]} 3. Nc3 {[%emt 0:00:05]} d5 {[%emt 0:00:06]} 4. Qb3 {[%emt 0:00:17]} c6 {[%emt 0:09:00]} 5. Nf3 {[%emt 0:03:29]} Bg7 {[%emt 0:03:10]} 6. cxd5 {[%emt 0:03:48]} cxd5 7. Bg5 {[%emt 0:03:34]} e6 {[%emt 0:06:02]} 8. h4 {[%emt 0:02:39]} h6 {[%emt 0:04:01]} 9. Bf4 {[%emt 0:01:51]} O-O {[%emt 0:01:53]} 10. e3 {[%emt 0:01:11]} a6 {[%emt 0:02:08]} 11. Bd3 {[%emt 0:01:01]} Nc6 {[%emt 0:00:51]} 12. O-O-O {[%emt 0:16:21]} Ng4 {[%emt 0:03:36]} 13. h5 {[%emt 0:06:18]} g5 {[%emt 0:02:03]} 14. Bg3 {[%emt 0:01:53]} f5 {[%emt 0:01:52]} 15. Kb1 {[%emt 0:07:23]} b5 {[%emt 0:00:50]} 16. Rc1 {[%emt 0:07:34]} Na5 {[%emt 0:07:45]} 17. Qd1 {[%emt 0:01:01]} Nc4 {[%emt 0:05:54]} 18. Qe2 {[%emt 0:02:09]} Bd7 {[%emt 0:04:43]} 19. Nd2 {[%emt 0:01:59]} b4 {[%emt 0:06:23]} 20. Nd1 {[%emt 0:00:55]} Nxd2+ {[%emt 0:01:55]} 21. Qxd2 {[%emt 0:00:09]} Qe7 {[%emt 0:07:00]} 22. f3 {[%emt 0:02:13]} Nf6 {[%emt 0:00:51]} 23. Nf2 {[%emt 0:00:27]} Rfc8 {[%emt 0:01:05]} 24. Bc2 {[%emt 0:09:21]} a5 {[%emt 0:02:06]} 25. Nd3 {[%emt 0:00:32]} Bb5 {[%emt 0:01:15]} 26. Nc5 {[%emt 0:00:56]} Nd7 {[%emt 0:02:31]} 27. Ba4 {[%emt 0:02:52]} Rxc5 {[%emt 0:03:15]} 28. dxc5 {[%emt 0:01:31]} Bxa4 {[%emt 0:00:26]} 29. Bd6 {[%emt 0:02:10]} Qf6 {[%emt 0:00:31]} 30. Rhe1 {[%emt 0:01:44]} Ne5 {[%emt 0:02:11]} 31. Bxe5 {[%emt 0:01:12]} Qxe5 {[%emt 0:00:21]} 32. Qd4 {[%emt 0:02:05]} Qxd4 {[%emt 0:01:52]} 33. exd4 {[%emt 0:00:05]} Kf7 {[%emt 0:00:14]} 34. b3 {[%emt 0:00:29]} Bb5 {[%emt 0:00:37]} 35. Rcd1 {[%emt 0:00:25]} f4 {[%emt 0:00:32]} 36. a4 {[%emt 0:02:30]} bxa3 {[%emt 0:00:28]} 37. Ka2 {[%emt 0:00:06]} e5 {[%emt 0:01:38]} 38. dxe5 {[%emt 0:01:11]} Ke6 {[%emt 0:00:09]} 39. Kxa3 {[%emt 0:00:33]} Bc6 {[%emt 0:01:24]} 40. Rd2 {[%emt 0:00:57]} Rb8 {[%emt 0:00:55]} 41. Rb2 {[%emt 0:03:58]} Bf8 0-1

[Event "2nd Bieszczady Chess-ch B 2022"]
[Site "Bystre"]
[Date "2022.07.20"]
[Round "4.3"]
[White "Sola, Wojciech"]
[Black "Zajac, Karol"]
[Result "1-0"]
[ECO "D45"]
[WhiteElo "1780"]
[BlackElo "1579"]
[Annotator "NA COMBH"]
[PlyCount "81"]
[EventDate "2022.07.17"]
[EventCountry "POL"]
[SourceTitle "playchess.com"]
[Source "ChessBase"]
[SourceQuality "1"]
[TimeControl "5400+30"]

1. c4 {[%emt 0:00:10]} c6 {[%emt 0:00:21]} 2. Nc3 {[%emt 0:00:27]} d5 {[%emt 0:00:07]} 3. d4 {[%emt 0:00:07]} Nf6 {[%emt 0:00:09]} 4. e3 {[%emt 0:00:47]} e6 {[%emt 0:00:13]} 5. Nf3 {[%emt 0:01:01]} Nbd7 {[%emt 0:00:40]} 6. Qc2 {[%emt 0:01:19]} Bd6 {[%emt 0:02:46]} 7. h3 {[%emt 0:02:01]} Qe7 {[%emt 0:06:07]} 8. Bd3 {[%emt 0:06:35]} dxc4 {[%emt 0:06:37]} 9. Bxc4 {[%emt 0:00:08]} e5 {[%emt 0:00:07]} 10. O-O {[%emt 0:01:11]} O-O {[%emt 0:11:06]} 11. b3 {[%emt 0:03:51]} h6 {[%emt 0:05:59]} 12. Nh4 {[%emt 0:15:06]} Re8 {[%emt 0:13:36]} 13. Nf5 {[%emt 0:21:15]} Qf8 {[%emt 0:00:29]} 14. Nxd6 {[%emt 0:00:12]} Qxd6 {[%emt 0:00:06]} 15. Ne4 {[%emt 0:08:44]} Nxe4 {[%emt 0:05:35]} 16. Qxe4 {[%emt 0:00:08]} b5 {[%emt 0:01:21]} 17. Bxb5 {[%emt 0:04:06]} Bb7 {[%emt 0:00:12]} 18. Bc4 {[%emt 0:01:28]} exd4 {[%emt 0:09:46]} 19. Qxd4 {[%emt 0:00:40]} Qxd4 {[%emt 0:00:09]} 20. exd4 {[%emt 0:00:10]} Rad8 {[%emt 0:02:46]} 21. Rd1 {[%emt 0:12:51]} Nc5 {[%emt 0:04:57]} 22. Bxh6 {[%emt 0:01:53]} Nxb3 {[%emt 0:00:52]} 23. axb3 {[%emt 0:00:20]} gxh6 {[%emt 0:00:06]} 24. Rxa7 {[%emt 0:00:15]} Rd7 {[%emt 0:00:49]} 25. Rd3 {[%emt 0:03:18]} Kf8 {[%emt 0:02:08]} 26. Re3 {[%emt 0:01:22]} Red8 {[%emt 0:00:37]} 27. Rf3 {[%emt 0:00:16]} Re7 {[%emt 0:01:44]} 28. Rxf7+ {[%emt 0:02:55]} Rxf7 {[%emt 0:00:21]} 29. Bxf7 {[%emt 0:00:13]} Kxf7 {[%emt 0:00:35]} 30. Rxb7+ {[%emt 0:00:07]} Kf6 {[%emt 0:00:07]} 31. Rb6 {[%emt 0:00:21]} Rxd4 {[%emt 0:00:22]} 32. Rxc6+ {[%emt 0:00:12]} Kg5 {[%emt 0:00:08]} 33. Rc5+ {[%emt 0:00:11]} Kg6 {[%emt 0:00:27]} 34. g3 {[%emt 0:02:12]} Rd2 {[%emt 0:00:15]} 35. b4 {[%emt 0:00:27]} Rb2 {[%emt 0:00:15]} 36. b5 {[%emt 0:00:03]} Rb4 {[%emt 0:00:08]} 37. g4 {[%emt 0:00:28]} Rb3 {[%emt 0:00:12]} 38. Kg2 {[%emt 0:00:10]} Rb2 {[%emt 0:00:06]} 39. Kg3 {[%emt 0:00:21]} Rb1 {[%emt 0:00:06]} 40. Rc6+ {[%emt 0:00:16]} Kg5 {[%emt 0:00:12]} 41. h4# {[%emt 0:00:09]} 1-0